fUSD/lending_fUSD_20240514
["ID","MTS","AMOUNT","RATE_DAILY","PERIOD"]
[327014086,1715712663319,-1005.59,0.00012999,2]
[327014087,1715712663329,-1038.19,0.00012999,2]
[327014088,1715712663339,-1005.59,0.00012999,2]
[327014089,1715712663348,-1038.19,0.00012999,2]
[327014090,1715712663358,-1005.59,0.00012999,2]
[327014091,1715712663367,-1038.19,0.00012999,2]
[327014092,1715712663376,-1038.22041307,0.00012999,2]
[327014093,1715712663386,-1005.59,0.00012999,2]
[327014094,1715712663395,-1005.8099474,0.00012999,2]
[327014095,1715712663405,-500.0,0.00012999,2]
[327014096,1715712663414,-335.36227473,0.00012999,2]
[327014097,1715712663423,-531.098694,0.00012999,2]
[327014098,1715712663433,-531.098694,0.00012999,2]
[327014099,1715712663443,-725.53,0.00012999,2]
[327014100,1715712663452,-725.53,0.00012999,2]
[327014101,1715712663462,-725.53,0.00012999,2]
[327014102,1715712663472,-725.53,0.00012999,2]
[327014103,1715712663481,-725.53,0.00012999,2]
[327014104,1715712663494,-725.6,0.00012999,2]
[327014105,1715712663503,-560.75,0.00012999,2]
[327014106,1715712663512,-560.75,0.00012999,2]
[327014107,1715712663521,-560.75,0.00012999,2]
[327014108,1715712663531,-560.75,0.00012999,2]
[327014109,1715712663541,-560.75,0.00012999,2]
[327014110,1715712663550,-560.81,0.00012999,2]
[327014111,1715712663559,-500.0,0.00012999,2]
[327014112,1715712663568,-500.0,0.00012999,2]
[327014113,1715712663577,-500.0,0.00012999,2]
[327014114,1715712663587,-394.5439324,0.00012999,2]
[327014115,1715712663596,-500.0,0.00012999,2]
[327014116,1715712663606,-500.0,0.00012999,2]
[327014117,1715712663616,-404.93,0.00012999,2]
[327014118,1715712663626,-801.48,0.00012999,2]
[327014119,1715712663636,-801.48,0.00012999,2]
[327014120,1715712663645,-801.48,0.00012999,2]
[327014121,1715712663657,-1309.94,0.00012999,2]
[327014122,1715712663667,-801.48,0.00012999,2]
[327014123,1715712663676,-1309.94,0.00012999,2]
[327014124,1715712663687,-801.67333106,0.00012999,2]
[327014125,1715712663696,-1309.94,0.00012999,2]
[327014126,1715712663706,-1309.94,0.00012999,2]
[327014127,1715712663717,-1310.15584585,0.00012999,2]
[327014128,1715712663727,-1875.23,0.00012999,2]
[327014129,1715712663736,-1875.23,0.00012999,2]
[327014130,1715712663744,-1875.23,0.00012999,2]
[327014131,1715712663754,-1875.23,0.00012999,2]
[327014132,1715712663902,-1875.23,0.00012999,2]
[327014133,1715712663918,-1875.34636343,0.00012999,2]
[327014134,1715712663928,-781.43,0.00012999,2]
[327014135,1715712663937,-781.43,0.00012999,2]
[327014136,1715712663947,-781.43,0.00012999,2]
[327014137,1715712663956,-781.43,0.00012999,2]
[327014138,1715712663969,-781.57780875,0.00012999,2]
[327014139,1715712663979,-240.530224,0.00012999,2]
[327014140,1715712663990,-240.530224,0.00012999,2]
[327014141,1715712663999,-3082.72,0.00012999,2]
[327014142,1715712664009,-3082.72,0.00012999,2]
[327014143,1715712664019,-2231.28,0.00012999,2]
[327014144,1715712664028,-3082.72,0.00012999,2]
[327014145,1715712664037,-2231.28,0.00012999,2]
[327014146,1715712664047,-3082.72,0.00012999,2]
[327014147,1715712664056,-2231.28,0.00012999,2]
[327014148,1715712664064,-3082.72,0.00012999,2]
[327014149,1715712664074,-2231.28,0.00012999,2]
[327014150,1715712664084,-3082.90795162,0.00012999,2]
[327014151,1715712664094,-2231.28,0.00012999,2]
[327014152,1715712664104,-2231.29173435,0.00012999,2]
[327014153,1715712664114,-151.0,0.00012999,2]
[327014154,1715712664123,-549.03,0.00012999,2]
[327014155,1715712664133,-549.03,0.00012999,2]
[327014156,1715712664142,-549.03,0.00012999,2]
[327014157,1715712664152,-549.03,0.00012999,2]
[327014158,1715712664161,-549.15838056,0.00012999,2]
[327014159,1715712664171,-722.91,0.00012999,2]
[327014160,1715712664180,-722.91,0.00012999,2]
[327014161,1715712664190,-722.91,0.00012999,2]
[327014162,1715712664199,-722.91,0.00012999,2]
[327014163,1715712664209,-722.91,0.00012999,2]
[327014164,1715712664221,-722.99133253,0.00012999,2]
[327014165,1715712664230,-1340.96,0.00012999,2]
[327014166,1715712664240,-151.0,0.00012999,2]
[327014167,1715712664249,-1340.96,0.00012999,2]
[327014168,1715712664258,-1340.96,0.00012999,2]
[327014169,1715712664267,-1340.96,0.00012999,2]
[327014170,1715712664275,-1341.05100635,0.00012999,2]
[327014171,1715712664284,-500.0,0.00012999,2]
[327014172,1715712664294,-620.5972571,0.00012999,2]
[327014173,1715712664303,-707.86,0.00012999,2]
[327014174,1715712664313,-707.86,0.00012999,2]
[327014175,1715712664322,-707.86,0.00012999,2]
[327014176,1715712664331,-299.283334,0.00012999,2]
[327014177,1715712664340,-707.86,0.00012999,2]
[327014178,1715712664350,-707.86,0.00012999,2]
[327014179,1715712664360,-707.88279671,0.00012999,2]
[327014180,1715712664369,-299.283334,0.00012999,2]
[327014181,1715712664380,-2100.0,0.00013,2]
[327014182,1715712664390,-2940831.03933512,0.00013,2]
[327014183,1715712664624,-89359.57652905,0.00013,2]
[327014184,1715712664636,-43297.66509046,0.00013,2]
[327014185,1715712664646,-104733.60335911,0.00013,2]
[327014186,1715712664658,-811.50422646,0.00013,2]
[327014187,1715712664678,-344.0194332,0.00013,2]
[327014188,1715712664689,-332.982051,0.00013,2]
[327014189,1715712664780,-176.218913,0.00012979,2]
[327014190,1715712664789,-176.218913,0.0001298,2]
[327014191,1715712664799,-176.218913,0.0001298,2]
[327014192,1715712664809,-176.218913,0.0001298,2]
[327014193,1715712664818,-30215.79153182,0.00013,2]
[327014194,1715712664829,-630545.3707986,0.00013,2]
[327014195,1715712664841,-737305.86027428,0.00013,2]
[327014196,1715712664852,-168822.43145799,0.00013,2]
[327014197,1715712665062,-176.218913,0.0001298,2]
[327014198,1715712665072,-176.218913,0.00012999,2]
[327014199,1715712665081,-497.49039006,0.00013,2]
[327014200,1715712665094,-1315.90864206,0.00013,2]
[327014201,1715712665105,-603.82482589,0.00013,2]
[327014202,1715712665116,-1574.76296749,0.00013,2]
[327014250,1715713832907,-200.0,0.00011,2]
[327014252,1715713832916,-168.83467771,0.00011041,2]
[327014254,1715713832926,-302.92423187,0.00011133,2]
[327014324,1715713839535,-6864.25876981,0.00011133,2]
[327014325,1715713839546,-179.02,0.00011141,2]
[327014327,1715713839556,-856.72123019,0.00011638,2]
[327014328,1715713839568,-6630.77876981,0.00011638,2]
[327014329,1715713839577,-250.0,0.00011718,2]
[327014330,1715713839587,-152.51,0.00011726,2]
[327014331,1715713839596,-164.98,0.00011848,2]
[327014332,1715713839606,-586.66123019,0.000119,4]
[327014333,1715713839617,-113.33876981,0.000119,4]
[327014335,1715713839627,-179.95,0.00011905,2]
[327014336,1715713839637,-1000.0,0.00011926,2]
[327014337,1715713839647,-1400.0,0.00012,4]
[327014338,1715713839656,-2200.0,0.000121,4]
[327014339,1715713839666,-2900.0,0.000122,4]
[327014340,1715713839675,-3700.0,0.000123,4]
[327014341,1715713839685,-241.404643,0.00012358,2]
[327014342,1715713839694,-181.053481,0.00012358,2]
[327014343,1715713839704,-198.02071,0.00012358,2]
[327014344,1715713839713,-176.02769,0.00012358,2]
[327014345,1715713839723,-10932.27936531,0.000124,2]
[327014346,1715713839732,-700.0,0.000124,4]
[327014347,1715713839742,-700.0,0.000125,4]
[327014348,1715713839752,-181.053481,0.00012564,2]
[327014349,1715713839761,-700.0,0.000126,4]
[327014350,1715713839771,-700.0,0.000127,4]
[327014351,1715713839780,-181.053481,0.0001277,2]
[327014352,1715713839791,-1200.0,0.000128,4]
[327014353,1715713839800,-168.5723967,0.00012869,2]
[327014354,1715713839810,-3728.868,0.00012876,2]
[327014355,1715713839820,-500.0,0.00012876,2]
[327014356,1715713839829,-459.9349011,0.00012876,2]
[327014357,1715713839839,-500.0,0.00012876,2]
[327014358,1715713839849,-500.0,0.00012876,2]
[327014359,1715713839859,-500.0,0.00012876,2]
[327014360,1715713839868,-513.29356821,0.00012876,2]
[327014361,1715713839878,-513.61215158,0.00012876,2]
[327014362,1715713839888,-504.29341706,0.00012876,2]
[327014363,1715713839897,-515.75174117,0.00012876,2]
[327014364,1715713839906,-507.52641166,0.00012876,2]
[327014365,1715713839916,-501.34609822,0.00012876,2]
[327014366,1715713839926,-500.0,0.00012876,2]
[327014367,1715713839936,-238.13568579,0.00012876,2]
[327014368,1715713839948,-500.0,0.00012876,2]
[327014369,1715713839960,-500.0,0.00012876,2]
[327014370,1715713839971,-500.0,0.00012876,2]
[327014371,1715713839982,-500.0,0.00012876,2]
[327014372,1715713839992,-500.0,0.00012876,2]
[327014374,1715713840002,-500.0,0.00012876,2]
[327014376,1715713840012,-500.0,0.00012876,2]
[327014378,1715713840022,-500.0,0.00012876,2]
[327014379,1715713840032,-165.88684312,0.00012876,2]
[327014381,1715713840042,-500.0,0.00012876,2]
[327014382,1715713840052,-500.0,0.00012876,2]
[327014383,1715713840062,-500.0,0.00012876,2]
[327014384,1715713840071,-500.0,0.00012876,2]
[327014385,1715713840081,-500.0,0.00012876,2]
[327014386,1715713840091,-500.0,0.00012876,2]
[327014387,1715713840100,-500.0,0.00012876,2]
[327014388,1715713840112,-500.0,0.00012876,2]
[327014389,1715713840121,-652.47,0.00012876,2]
[327014390,1715713840131,-652.47,0.00012876,2]
[327014391,1715713840140,-510.20766446,0.00012876,2]
[327014392,1715713840150,-557.73,0.00012876,2]
[327014393,1715713840159,-557.73,0.00012876,2]
[327014394,1715713840169,-500.0,0.00012876,2]
[327014395,1715713840179,-500.0,0.00012876,2]
[327014396,1715713840188,-500.0,0.00012876,2]
[327014397,1715713840198,-500.0,0.00012876,2]
[327014398,1715713840208,-674.11,0.00012876,2]
[327014399,1715713840218,-674.11,0.00012876,2]
[327014400,1715713840229,-500.0,0.00012876,2]
[327014401,1715713840241,-500.0,0.00012876,2]
[327014402,1715713840250,-500.0,0.00012876,2]
[327014403,1715713840259,-500.0,0.00012876,2]
[327014404,1715713840269,-850.82,0.00012876,2]
[327014405,1715713840279,-850.82,0.00012876,2]
[327014406,1715713840288,-500.0,0.00012876,2]
[327014407,1715713840298,-500.0,0.00012876,2]
[327014408,1715713840307,-500.0,0.00012876,2]
[327014409,1715713840319,-500.0,0.00012876,2]
[327014410,1715713840329,-517.44212589,0.00012876,2]
[327014411,1715713840339,-500.0,0.00012876,2]
[327014412,1715713840348,-500.0,0.00012876,2]
[327014413,1715713840358,-500.0,0.00012876,2]
[327014414,1715713840368,-500.0,0.00012876,2]
[327014415,1715713840378,-473.68737397,0.00012876,2]
[327014416,1715713840392,-26.31262603,0.00012876,2]
[327014417,1715713840401,-258.58454446,0.00012876,2]
[327014418,1715713840582,-241.41545554,0.00012876,2]
[327014419,1715713840592,-500.0,0.00012885,2]
[327014420,1715713840601,-173.13322766,0.000129,2]
[327014421,1715713840610,-1757.757,0.00012922,2]
[327014422,1715713840619,-238.076,0.00012922,2]
[327014423,1715713840629,-198.02071,0.00012976,2]
[327014424,1715713840638,-181.053481,0.00012976,2]
[327014427,1715713840648,-500.0,0.00012976,2]
[327014429,1715713840658,-500.0,0.00012976,2]
[327014432,1715713840667,-524.24490734,0.00012976,2]
[327014435,1715713840676,-500.0,0.00012976,2]
[327014438,1715713840686,-500.0,0.00012976,2]
[327014440,1715713840696,-500.0,0.00012976,2]
[327014442,1715713840705,-500.0,0.00012976,2]
[327014444,1715713840715,-175.82896026,0.00012976,2]
[327014446,1715713840725,-652.47,0.00012976,2]
[327014448,1715713840735,-557.73,0.00012976,2]
[327014450,1715713840745,-500.0,0.00012976,2]
[327014452,1715713840754,-500.0,0.00012976,2]
[327014454,1715713840764,-674.11,0.00012976,2]
[327014456,1715713840773,-500.0,0.00012976,2]
[327014457,1715713840782,-500.0,0.00012976,2]
[327014458,1715713840792,-850.82,0.00012976,2]
[327014459,1715713840801,-500.0,0.00012976,2]
[327014460,1715713840811,-500.0,0.00012976,2]
[327014461,1715713840822,-500.0,0.00012976,2]
[327014462,1715713840831,-500.0,0.00012976,2]
[327014463,1715713840842,-500.0,0.00012976,2]
[327014464,1715713840852,-500.0,0.00012978,2]
[327014465,1715713840862,-500.0,0.00012978,2]
[327014466,1715713840873,-541.52387799,0.00012978,2]
[327014467,1715713840882,-500.0,0.00012978,2]
[327014468,1715713840891,-500.0,0.00012978,2]
[327014469,1715713840901,-500.0,0.00012978,2]
[327014470,1715713840911,-500.0,0.00012978,2]
[327014471,1715713840921,-533.38015159,0.00012978,2]
[327014472,1715713840930,-500.0,0.00012978,2]
[327014473,1715713840940,-500.0,0.00012978,2]
[327014474,1715713840951,-652.47,0.00012978,2]
[327014475,1715713840961,-652.47,0.00012978,2]
[327014476,1715713840971,-557.73,0.00012978,2]
[327014477,1715713840980,-557.73,0.00012978,2]
[327014478,1715713840990,-500.0,0.00012978,2]
[327014479,1715713840999,-500.0,0.00012978,2]
[327014480,1715713841009,-500.0,0.00012978,2]
[327014481,1715713841019,-500.0,0.00012978,2]
[327014482,1715713841030,-674.11,0.00012978,2]
[327014483,1715713841040,-674.11,0.00012978,2]
[327014484,1715713841050,-500.0,0.00012978,2]
[327014485,1715713841060,-500.0,0.00012978,2]
[327014486,1715713841070,-500.0,0.00012978,2]
[327014487,1715713841080,-500.0,0.00012978,2]
[327014489,1715713841090,-850.82,0.00012978,2]
[327014491,1715713841100,-850.82,0.00012978,2]
[327014493,1715713841110,-500.0,0.00012978,2]
[327014495,1715713841118,-500.0,0.00012978,2]
[327014497,1715713841129,-500.0,0.00012978,2]
[327014499,1715713841138,-500.0,0.00012978,2]
[327014501,1715713841147,-500.0,0.00012978,2]
[327014503,1715713841157,-500.0,0.00012978,2]
[327014505,1715713841166,-500.0,0.00012978,2]
[327014507,1715713841176,-500.0,0.00012978,2]
[327014509,1715713841185,-577.42972596,0.00012978,2]
[327014511,1715713841195,-500.0,0.00012979,2]
[327014513,1715713841204,-500.0,0.00012979,2]
[327014515,1715713841214,-500.0,0.00012979,2]
[327014517,1715713841222,-500.0,0.00012979,2]
[327014519,1715713841236,-500.0,0.00012979,2]
[327014521,1715713841248,-553.98087526,0.00012979,2]
[327014523,1715713841257,-500.0,0.00012979,2]
[327014525,1715713841268,-500.0,0.00012979,2]
[327014527,1715713841278,-500.0,0.00012979,2]
[327014528,1715713841287,-500.0,0.00012979,2]
[327014531,1715713841297,-459.73692025,0.00012979,2]
[327014533,1715713841306,-500.0,0.00012979,2]
[327014535,1715713841317,-500.0,0.00012979,2]
[327014537,1715713841326,-500.0,0.00012979,2]
[327014539,1715713841336,-532.73936014,0.00012979,2]
[327014541,1715713841346,-500.0,0.00012979,2]
[327014543,1715713841355,-652.47,0.00012979,2]
[327014545,1715713841364,-652.47,0.00012979,2]
[327014547,1715713841373,-652.47,0.00012979,2]
[327014549,1715713841382,-652.47,0.00012979,2]
[327014550,1715713841391,-652.47,0.00012979,2]
[327014553,1715713841401,-652.47,0.00012979,2]
[327014554,1715713841410,-652.47,0.00012979,2]
[327014557,1715713841420,-652.47,0.00012979,2]
[327014559,1715713841429,-652.47,0.00012979,2]
[327014561,1715713841439,-652.47,0.00012979,2]
[327014563,1715713841448,-652.47,0.00012979,2]
[327014565,1715713841458,-557.73,0.00012979,2]
[327014566,1715713841466,-557.73,0.00012979,2]
[327014569,1715713841476,-557.73,0.00012979,2]
[327014570,1715713841485,-557.73,0.00012979,2]
[327014572,1715713841495,-557.73,0.00012979,2]
[327014574,1715713841505,-557.73,0.00012979,2]
[327014577,1715713841516,-557.73,0.00012979,2]
[327014579,1715713841525,-557.73,0.00012979,2]
[327014581,1715713841535,-557.73,0.00012979,2]
[327014583,1715713841544,-557.73,0.00012979,2]
[327014585,1715713841553,-557.73,0.00012979,2]
[327014587,1715713841562,-500.0,0.00012979,2]
[327014589,1715713841571,-500.0,0.00012979,2]
[327014591,1715713841581,-500.0,0.00012979,2]
[327014592,1715713841590,-500.0,0.00012979,2]
[327014594,1715713841599,-500.0,0.00012979,2]
[327014596,1715713841609,-500.0,0.00012979,2]
[327014599,1715713841619,-500.0,0.00012979,2]
[327014600,1715713841629,-500.0,0.00012979,2]
[327014603,1715713841638,-500.0,0.00012979,2]
[327014605,1715713841647,-500.0,0.00012979,2]
[327014606,1715713841656,-500.0,0.00012979,2]
[327014609,1715713841666,-500.0,0.00012979,2]
[327014610,1715713841675,-500.0,0.00012979,2]
[327014612,1715713841684,-500.0,0.00012979,2]
[327014614,1715713841693,-500.0,0.00012979,2]
[327014616,1715713841702,-500.0,0.00012979,2]
[327014618,1715713841711,-674.11,0.00012979,2]
[327014620,1715713841720,-674.11,0.00012979,2]
[327014622,1715713841729,-674.11,0.00012979,2]
[327014624,1715713841739,-674.11,0.00012979,2]
[327014626,1715713841749,-674.11,0.00012979,2]
[327014629,1715713841758,-674.11,0.00012979,2]
[327014631,1715713841767,-674.11,0.00012979,2]
[327014633,1715713841776,-674.11,0.00012979,2]
[327014635,1715713841786,-674.11,0.00012979,2]
[327014636,1715713841795,-674.11,0.00012979,2]
[327014638,1715713841805,-674.11,0.00012979,2]
[327014641,1715713841815,-500.0,0.00012979,2]
[327014642,1715713841824,-528.00992943,0.00012979,2]
[327014645,1715713841833,-500.0,0.00012979,2]
[327014646,1715713841843,-500.0,0.00012979,2]
[327014649,1715713841852,-500.0,0.00012979,2]
[327014651,1715713841861,-500.0,0.00012979,2]
[327014652,1715713841870,-500.0,0.00012979,2]
[327014655,1715713841879,-500.0,0.00012979,2]
[327014656,1715713841889,-500.0,0.00012979,2]
[327014659,1715713841898,-500.0,0.00012979,2]
[327014661,1715713841907,-500.0,0.00012979,2]
[327014663,1715713841917,-500.0,0.00012979,2]
[327014665,1715713841926,-500.0,0.00012979,2]
[327014667,1715713841935,-850.82,0.00012979,2]
[327014669,1715713841944,-850.82,0.00012979,2]
[327014671,1715713841953,-850.82,0.00012979,2]
[327014673,1715713841963,-850.82,0.00012979,2]
[327014675,1715713841973,-850.82,0.00012979,2]
[327014677,1715713841982,-850.82,0.00012979,2]
[327014678,1715713841992,-850.82,0.00012979,2]
[327014681,1715713842001,-850.82,0.00012979,2]
[327014682,1715713842010,-850.82,0.00012979,2]
[327014684,1715713842019,-850.82,0.00012979,2]
[327014686,1715713842028,-850.82,0.00012979,2]
[327014688,1715713842038,-500.0,0.00012979,2]
[327014690,1715713842047,-500.0,0.00012979,2]
[327014693,1715713842056,-500.0,0.00012979,2]
[327014694,1715713842065,-500.0,0.00012979,2]
[327014697,1715713842075,-500.0,0.00012979,2]
[327014698,1715713842084,-500.0,0.00012979,2]
[327014700,1715713842093,-473.2,0.00012979,2]
[327014703,1715713842103,-500.0,0.00012979,2]
[327014705,1715713842112,-500.0,0.00012979,2]
[327014707,1715713842121,-500.0,0.00012979,2]
[327014708,1715713842130,-520.35377999,0.00012979,2]
[327014710,1715713842139,-500.0,0.00012979,2]
[327014713,1715713842148,-500.0,0.00012979,2]
[327014715,1715713842157,-500.0,0.00012979,2]
[327014717,1715713842167,-500.0,0.00012979,2]
[327014718,1715713842176,-500.0,0.00012979,2]
[327014721,1715713842185,-500.0,0.00012979,2]
[327014723,1715713842195,-500.0,0.00012979,2]
[327014724,1715713842204,-500.0,0.00012979,2]
[327014726,1715713842213,-500.0,0.00012979,2]
[327014728,1715713842222,-500.0,0.00012979,2]
[327014730,1715713842234,-500.0,0.00012979,2]
[327014732,1715713842245,-500.0,0.00012979,2]
[327014734,1715713842254,-500.0,0.00012979,2]
[327014736,1715713842263,-500.0,0.00012979,2]
[327014738,1715713842274,-500.0,0.00012979,2]
[327014740,1715713842283,-500.0,0.00012979,2]
[327014742,1715713842292,-3669.159,0.00012982,2]
[327014744,1715713842301,-652.47,0.0001299,2]
[327014746,1715713842312,-557.73,0.0001299,2]
[327014748,1715713842321,-500.0,0.0001299,2]
[327014750,1715713842331,-674.11,0.0001299,2]
[327014752,1715713842340,-500.0,0.0001299,2]
[327014754,1715713842349,-850.82,0.0001299,2]
[327014756,1715713842359,-500.0,0.0001299,2]
[327014758,1715713842368,-500.0,0.0001299,2]
[327014760,1715713842378,-460.37833859,0.00012998,2]
[327014762,1715713842387,-1270.65814986,0.00012998,2]
[327014764,1715713842396,-584.75766501,0.00012998,2]
[327014766,1715713842406,-652.47,0.00012998,2]
[327014768,1715713842415,-557.73,0.00012998,2]
[327014770,1715713842425,-4591.00992085,0.00012998,2]
[327014772,1715713842441,-528.02122,0.00012998,2]
[327014781,1715713842514,-7528.84018092,0.00012998,2]
[327014783,1715713842524,-500.0,0.00012998,2]
[327014785,1715713842533,-674.11,0.00012998,2]
[327014787,1715713842542,-537.7,0.00012998,2]
[327014789,1715713842552,-850.82,0.00012998,2]
[327014791,1715713842561,-500.0,0.00012998,2]
[327014793,1715713842570,-500.0,0.00012998,2]
[327014795,1715713842579,-1338.76,0.00012998,2]
[327014797,1715713842588,-652.47,0.00012999,2]
[327014799,1715713842598,-652.47,0.00012999,2]
[327014801,1715713842607,-652.47,0.00012999,2]
[327014803,1715713842616,-652.47,0.00012999,2]
[327014805,1715713842625,-652.47,0.00012999,2]
[327014807,1715713842634,-652.6899692,0.00012999,2]
[327014809,1715713842644,-557.73,0.00012999,2]
[327014811,1715713842654,-557.73,0.00012999,2]
[327014813,1715713842663,-557.73,0.00012999,2]
[327014815,1715713842672,-557.73,0.00012999,2]
[327014817,1715713842682,-557.73,0.00012999,2]
[327014819,1715713842691,-557.82,0.00012999,2]
[327014821,1715713842700,-500.0,0.00012999,2]
[327014822,1715713842709,-500.0,0.00012999,2]
[327014825,1715713842719,-500.0,0.00012999,2]
[327014830,1715713842900,-500.0,0.00012999,2]
[327014832,1715713842911,-181.94,0.00012999,2]
[327014834,1715713842920,-674.11,0.00012999,2]
[327014836,1715713842930,-674.11,0.00012999,2]
[327014838,1715713842939,-674.11,0.00012999,2]
[327014840,1715713842948,-674.11,0.00012999,2]
[327014842,1715713842958,-674.11,0.00012999,2]
[327014844,1715713842967,-674.25,0.00012999,2]
[327014846,1715713842977,-850.82,0.00012999,2]
[327014848,1715713842986,-850.82,0.00012999,2]
[327014850,1715713842996,-850.82,0.00012999,2]
[327014852,1715713843005,-850.82,0.00012999,2]
[327014854,1715713843015,-850.82,0.00012999,2]
[327014856,1715713843024,-850.94584591,0.00012999,2]
[327014858,1715713843034,-500.0,0.00012999,2]
[327014860,1715713843044,-614.7,0.00012999,2]
[327014861,1715713843054,-500.0,0.00012999,2]
[327014862,1715713843063,-500.0,0.00012999,2]
[327014863,1715713843072,-500.0,0.00012999,2]
[327014864,1715713843081,-422.7586095,0.00012999,2]
[327014866,1715713843092,-558.72,0.00012999,2]
[327014867,1715713843101,-558.72,0.00012999,2]
[327014868,1715713843112,-558.72,0.00012999,2]
[327014869,1715713843122,-558.72,0.00012999,2]
[327014870,1715713843131,-558.72,0.00012999,2]
[327014871,1715713843142,-558.72,0.00012999,2]
[327014872,1715713843151,-558.72,0.00012999,2]
[327014873,1715713843161,-558.72,0.00012999,2]
[327014874,1715713843170,-558.72,0.00012999,2]
[327014875,1715713843180,-558.72,0.00012999,2]
[327014876,1715713843189,-558.72,0.00012999,2]
[327014877,1715713843199,-558.72,0.00012999,2]
[327014878,1715713843209,-558.72,0.00012999,2]
[327014879,1715713843219,-558.72,0.00012999,2]
[327014880,1715713843231,-558.72,0.00012999,2]
[327014881,1715713843247,-558.72,0.00012999,2]
[327014882,1715713843256,-558.72,0.00012999,2]
[327014883,1715713843265,-558.72,0.00012999,2]
[327014884,1715713843277,-558.72,0.00012999,2]
[327014885,1715713843287,-558.72,0.00012999,2]
[327014886,1715713843297,-558.72,0.00012999,2]
[327014887,1715713843306,-558.72,0.00012999,2]
[327014888,1715713843317,-558.72,0.00012999,2]
[327014889,1715713843327,-558.86624877,0.00012999,2]
[327014890,1715713843336,-500.0,0.00012999,2]
[327014891,1715713843346,-500.0,0.00012999,2]
[327014892,1715713843355,-500.0,0.00012999,2]
[327014893,1715713843365,-500.0,0.00012999,2]
[327014894,1715713843375,-500.0,0.00012999,2]
[327014896,1715713843385,-500.0,0.00012999,2]
[327014898,1715713843394,-500.0,0.00012999,2]
[327014901,1715713843403,-500.0,0.00012999,2]
[327014905,1715713843412,-500.0,0.00012999,2]
[327014908,1715713843422,-500.0,0.00012999,2]
[327014913,1715713843432,-500.0,0.00012999,2]
[327014916,1715713843441,-500.0,0.00012999,2]
[327014920,1715713843450,-500.0,0.00012999,2]
[327014924,1715713843459,-500.0,0.00012999,2]
[327014927,1715713843468,-578.91701454,0.00012999,2]
[327014930,1715713843477,-500.0,0.00012999,2]
[327014932,1715713843487,-500.0,0.00012999,2]
[327014933,1715713843498,-500.0,0.00012999,2]
[327014934,1715713843507,-500.0,0.00012999,2]
[327014936,1715713843516,-500.0,0.00012999,2]
[327014937,1715713843525,-500.0,0.00012999,2]
[327014939,1715713843534,-500.0,0.00012999,2]
[327014940,1715713843543,-500.0,0.00012999,2]
[327014941,1715713843553,-500.0,0.00012999,2]
[327014942,1715713843562,-500.0,0.00012999,2]
[327014943,1715713843571,-500.0,0.00012999,2]
[327014944,1715713843580,-500.0,0.00012999,2]
[327014945,1715713843589,-500.0,0.00012999,2]
[327014946,1715713843599,-500.0,0.00012999,2]
[327014947,1715713843608,-500.0,0.00012999,2]